fUST/lending_fUST_20251218
["ID","MTS","AMOUNT","RATE_DAILY","PERIOD"]
[398927587,1766001041176,-151.0,0.00029762,7]
[398927589,1766001041186,-151.151734,0.00029762,7]
[398927590,1766001041196,-169.338842,0.00029762,7]
[398927592,1766001041205,-169.338842,0.00029762,7]
[398927594,1766001041214,-169.338842,0.00029762,7]
[398927596,1766001041223,-169.338842,0.00029762,7]
[398927598,1766001041232,-169.338842,0.00029762,7]
[398927600,1766001041241,-169.338842,0.00029762,7]
[398927602,1766001041250,-169.338842,0.00029762,7]
[398927604,1766001041260,-169.338842,0.00029762,7]
[398927606,1766001041269,-169.338842,0.00029762,7]
[398927608,1766001041279,-169.338842,0.00029762,7]
[398927610,1766001041288,-169.338842,0.00029762,7]
[398927612,1766001041298,-169.338842,0.00029762,7]
[398927613,1766001041307,-151.0,0.00029762,7]
[398927614,1766001041316,-151.0,0.00029762,7]
[398927615,1766001041325,-151.0,0.00029762,7]
[398927616,1766001041334,-151.0,0.00029762,7]
[398927617,1766001041342,-152.395835,0.00029762,7]
[398927618,1766001041352,-186.433172,0.00029762,7]
[398927619,1766001041361,-186.433172,0.00029762,7]
[398927620,1766001041370,-186.433172,0.00029762,7]
[398927621,1766001041381,-186.433172,0.00029762,7]
[398927622,1766001041390,-186.433172,0.00029762,7]
[398927623,1766001041399,-186.433172,0.00029762,7]
[398927624,1766001041408,-186.433172,0.00029762,7]
[398927625,1766001041417,-186.433172,0.00029762,7]
[398927626,1766001041427,-186.433172,0.00029762,7]
[398927627,1766001041435,-186.433172,0.00029762,7]
[398927628,1766001041444,-186.433172,0.00029762,7]
[398927629,1766001041454,-186.433181,0.00029762,7]
[398927630,1766001041463,-451.732337,0.00029762,7]
[398927631,1766001041472,-451.732337,0.00029762,7]
[398927632,1766001041481,-451.732337,0.00029762,7]
[398927633,1766001041490,-451.732337,0.00029762,7]
[398927634,1766001041499,-451.732337,0.00029762,7]
[398927635,1766001041508,-451.732337,0.00029762,7]
[398927636,1766001041517,-451.732337,0.00029762,7]
[398927637,1766001041526,-451.732337,0.00029762,7]
[398927638,1766001041536,-451.732337,0.00029762,7]
[398927639,1766001041545,-451.732337,0.00029762,7]
[398927640,1766001041555,-451.732337,0.00029762,7]
[398927641,1766001041564,-451.732339,0.00029762,7]
[398927642,1766001041573,-165.97846,0.00029762,7]
[398927643,1766001041582,-165.97846,0.00029762,7]
[398927645,1766001041591,-165.97846,0.00029762,7]
[398927646,1766001041600,-165.97846,0.00029762,7]
[398927648,1766001041609,-165.97846,0.00029762,7]
[398927650,1766001041618,-165.97846,0.00029762,7]
[398927652,1766001041629,-165.97846,0.00029762,7]
[398927654,1766001041640,-165.97846,0.00029762,7]
[398927656,1766001041649,-165.97846,0.00029762,7]
[398927658,1766001041658,-165.97846,0.00029762,7]
[398927660,1766001041668,-165.97846,0.00029762,7]
[398927662,1766001041677,-165.978465,0.00029762,7]
[398927664,1766001041686,-1024.245369,0.00029762,7]
[398927666,1766001041696,-1024.245369,0.00029762,7]
[398927679,1766001041705,-846.275676,0.00029762,7]
[398927681,1766001041816,-1024.245369,0.00029762,7]
[398927683,1766001041835,-846.275676,0.00029762,7]
[398927685,1766001041845,-1024.245369,0.00029762,7]
[398927688,1766001041855,-1024.245369,0.00029762,7]
[398927689,1766001041864,-846.275676,0.00029762,7]
[398927691,1766001041873,-1024.245369,0.00029762,7]
[398927693,1766001041882,-846.275676,0.00029762,7]
[398927695,1766001041891,-1024.245369,0.00029762,7]
[398927697,1766001041900,-1024.245369,0.00029762,7]
[398927699,1766001041909,-1024.245369,0.00029762,7]
[398927701,1766001041918,-846.275676,0.00029762,7]
[398927703,1766001041927,-846.275676,0.00029762,7]
[398927705,1766001041936,-1024.245369,0.00029762,7]
[398927707,1766001041945,-1024.245369,0.00029762,7]
[398927709,1766001041955,-1024.245369,0.00029762,7]
[398927711,1766001041963,-846.275676,0.00029762,7]
[398927713,1766001041972,-846.275667,0.00029762,7]
[398927715,1766001041981,-186.252282,0.00029762,7]
[398927717,1766001041990,-186.252282,0.00029762,7]
[398927719,1766001041999,-186.252282,0.00029762,7]
[398927721,1766001042009,-186.252282,0.00029762,7]
[398927723,1766001042018,-186.252282,0.00029762,7]
[398927725,1766001042027,-186.252282,0.00029762,7]
[398927727,1766001042036,-186.252282,0.00029762,7]
[398927729,1766001042045,-186.252272,0.00029762,7]
[398927731,1766001042055,-151.0,0.00029762,7]
[398927733,1766001042065,-151.0,0.00029762,7]
[398927734,1766001042074,-151.0,0.00029762,7]
[398927736,1766001042083,-151.0,0.00029762,7]
[398927738,1766001042093,-279.675315,0.00029762,7]
[398927740,1766001042102,-279.675315,0.00029762,7]
[398927742,1766001042111,-279.675315,0.00029762,7]
[398927744,1766001042121,-279.675315,0.00029762,7]
[398927746,1766001042130,-440.854533,0.00029762,7]
[398927748,1766001042140,-440.854533,0.00029762,7]
[398927750,1766001042149,-279.675315,0.00029762,7]
[398927752,1766001042158,-279.675315,0.00029762,7]
[398927754,1766001042167,-440.854533,0.00029762,7]
[398927756,1766001042176,-440.854533,0.00029762,7]
[398927758,1766001042185,-279.675315,0.00029762,7]
[398927760,1766001042194,-279.675317,0.00029762,7]
[398927762,1766001042203,-440.854533,0.00029762,7]
[398927764,1766001042212,-440.854533,0.00029762,7]
[398927766,1766001042221,-440.854533,0.00029762,7]
[398927768,1766001042230,-440.854533,0.00029762,7]
[398927770,1766001042239,-203.565316,0.00029762,7]
[398927772,1766001042247,-203.565316,0.00029762,7]
[398927774,1766001042257,-203.565316,0.00029762,7]
[398927776,1766001042267,-203.565316,0.00029762,7]
[398927778,1766001042276,-203.565316,0.00029762,7]
[398927780,1766001042284,-203.565316,0.00029762,7]
[398927782,1766001042293,-152.52353123,0.00029762,7]
[398927785,1766001042310,-51.04178477,0.00029762,7]
[398927787,1766001042318,-203.565316,0.00029762,7]
[398927789,1766001042327,-203.565316,0.00029762,7]
[398927791,1766001042336,-203.565316,0.00029762,7]
[398927793,1766001042346,-203.565316,0.00029762,7]
[398927795,1766001042355,-203.565316,0.00029762,7]
[398927797,1766001042365,-151.0,0.00029762,7]
[398927798,1766001042374,-151.0,0.00029762,7]
[398927800,1766001042383,-151.0,0.00029762,7]
[398927802,1766001042392,-151.0,0.00029762,7]
[398927804,1766001042401,-301.610377,0.00029762,7]
[398927806,1766001042410,-313.20847509,0.00029762,2]
[398927808,1766001042419,-151.0,0.00029772,7]
[398927810,1766001042428,-151.0,0.00029772,7]
[398927812,1766001042437,-203.151841,0.00029772,7]
[398927814,1766001042446,-203.151841,0.00029772,7]
[398927816,1766001042455,-203.151841,0.00029772,7]
[398927818,1766001042466,-203.151841,0.00029772,7]
[398927820,1766001042474,-203.151841,0.00029772,7]
[398927822,1766001042483,-203.151841,0.00029772,7]
[398927824,1766001042492,-203.151841,0.00029772,7]
[398927826,1766001042501,-203.151841,0.00029772,7]
[398927828,1766001042510,-203.151841,0.00029772,7]
[398927830,1766001042519,-203.151841,0.00029772,7]
[398927832,1766001042528,-203.151841,0.00029772,7]
[398927834,1766001042536,-203.151835,0.00029772,7]
[398927836,1766001042545,-346.995822,0.00029772,7]
[398927838,1766001042555,-346.995822,0.00029772,7]
[398927840,1766001042564,-346.995822,0.00029772,7]
[398927842,1766001042573,-346.995822,0.00029772,7]
[398927844,1766001042582,-346.995822,0.00029772,7]
[398927846,1766001042591,-346.995822,0.00029772,7]
[398927848,1766001042601,-346.995822,0.00029772,7]
[398927849,1766001042610,-346.995822,0.00029772,7]
[398927851,1766001042619,-346.995822,0.00029772,7]
[398927854,1766001042629,-346.995822,0.00029772,7]
[398927856,1766001042639,-346.995822,0.00029772,7]
[398927858,1766001042648,-346.995825,0.00029772,7]
[398927860,1766001042658,-292.319573,0.00029772,7]
[398927862,1766001042667,-292.319573,0.00029772,7]
[398927864,1766001042676,-292.319573,0.00029772,7]
[398927866,1766001042686,-292.319573,0.00029772,7]
[398927868,1766001042695,-292.319573,0.00029772,7]
[398927871,1766001042704,-292.319573,0.00029772,7]
[398927874,1766001042714,-292.319573,0.00029772,7]
[398927876,1766001042723,-292.319565,0.00029772,7]
[398927878,1766001042733,-151.0,0.00029772,7]
[398927880,1766001042742,-151.0,0.00029772,7]
[398927882,1766001042751,-151.0,0.00029772,7]
[398927884,1766001042761,-151.0,0.00029772,7]
[398927886,1766001042770,-151.0,0.00029772,7]
[398927888,1766001042780,-151.0,0.00029772,7]
[398927891,1766001042789,-169.338842,0.00029772,7]
[398927894,1766001042799,-169.338842,0.00029772,7]
[398927897,1766001042808,-169.338842,0.00029772,7]
[398927900,1766001042817,-169.338832,0.00029772,7]
[398927903,1766001042827,-203.565316,0.00029772,7]
[398927906,1766001042836,-203.565316,0.00029772,7]
[398927908,1766001042846,-203.565316,0.00029772,7]
[398927910,1766001042856,-203.565316,0.00029772,7]
[398927912,1766001042866,-203.565316,0.00029772,7]
[398927914,1766001042879,-203.565316,0.00029772,7]
[398927916,1766001042888,-203.565316,0.00029772,7]
[398927918,1766001042898,-203.565326,0.00029772,7]
[398927921,1766001042907,-115755.61482028,0.00029772,2]
[398927923,1766001042919,-6382.19757813,0.00029772,2]
[398927956,1766001043233,-34.11333234,0.0001644,2]
[398927966,1766001043293,-148.16666766,0.0001644,2]
[398927968,1766001043302,-1946.97,0.0002958,10]
[398927970,1766001043311,-8079.47892583,0.00029772,2]
[398927972,1766001043322,-118947.45037121,0.00029772,2]
[398927978,1766001043364,-323.89483058,0.00029772,2]
[398928361,1766002232171,-473.95502877,0.00013273,2]
[398928362,1766002232180,-500.0,0.00013273,2]
[398928363,1766002232190,-150.0,0.00013273,2]
[398928364,1766002232199,-356.04499623,0.00013273,2]
[398928365,1766002232212,-251.95500377,0.00013273,2]
[398928366,1766002232222,-500.0,0.00013699,2]
[398928367,1766002232231,-1000.0,0.00013821,2]
[398928368,1766002232240,-1000.0,0.00014247,2]
[398928369,1766002232249,-1500.0,0.00014368,2]
[398928370,1766002232258,-491.54170494,0.00014794,2]
[398928371,1766002232269,-708.45829506,0.00014794,2]
[398928372,1766002232277,-668.24709313,0.00014795,2]
[398928375,1766002232296,-831.75290687,0.00014795,2]
[398928377,1766002232305,-355.65293153,0.00014915,2]
[398928379,1766002232317,-760.34706847,0.00014915,2]
[398928380,1766002232325,-1989.65293153,0.00014916,2]
[398928564,1766002238220,-10.34706847,0.00014916,2]
[398928565,1766002238231,-177.0,0.00015273,2]
[398928566,1766002238244,-2000.0,0.00015342,2]
[398928567,1766002238254,-59.46068633,0.00015464,2]
[398928569,1766002238265,-438.41934811,0.00015464,2]
[398928571,1766002238276,-2.11996556,0.00015464,2]
[398928573,1766002238286,-504.2244352,0.0001589,2]
[398928575,1766002238295,-180.185891,0.00015995,2]
[398928577,1766002238304,-545.812782,0.00015995,2]
[398928579,1766002238314,-1000.0,0.00016044,2]
[398928581,1766002238323,-2937.953823,0.00016123,2]
[398928583,1766002238333,-204.0,0.00017273,2]
[398928585,1766002238342,-150.64372661,0.00019969,2]
[398928587,1766002238352,-1431.60537575,0.00020936,2]
[398928589,1766002238362,-187.60640086,0.00020987,2]
[398928591,1766002238372,-300.34390115,0.00020987,2]
[398928593,1766002238382,-3000.0,0.00021,2]
[398928595,1766002238393,-1463.86251989,0.0002101,2]
[398928627,1766002238698,-1536.13748011,0.0002101,2]
[398928629,1766002238707,-315.15521193,0.0002102,2]
[398928760,1766002240341,-2684.84478807,0.0002102,2]
[398928762,1766002240351,-500.0,0.00021029,2]
[398928764,1766002240361,-500.0,0.00021029,2]
[398928766,1766002240370,-321.9886112,0.00021029,2]
[398928768,1766002240379,-500.0,0.00021029,2]
[398928770,1766002240388,-500.0,0.00021029,2]
[398928772,1766002240399,-647.19587788,0.00021029,2]
[398928774,1766002240408,-500.0,0.00021029,2]
[398928776,1766002240417,-388.30199275,0.00021029,2]
[398928778,1766002240427,-500.0,0.00021029,2]
[398928780,1766002240437,-500.0,0.00021029,2]
[398928782,1766002240446,-500.0,0.00021029,2]
[398928784,1766002240455,-500.0,0.00021029,2]
[398928786,1766002240466,-500.0,0.00021029,2]
[398928788,1766002240475,-500.0,0.00021029,2]
[398928790,1766002240485,-500.0,0.00021029,2]
[398928792,1766002240494,-500.0,0.00021029,2]
[398928794,1766002240504,-500.0,0.00021029,2]
[398928796,1766002240512,-3000.0,0.0002103,2]
[398928798,1766002240521,-3000.0,0.0002104,2]
[398928800,1766002240530,-2878.34917972,0.0002105,2]
[398928804,1766002240568,-121.65082028,0.0002105,2]
[398928806,1766002240578,-3000.0,0.0002106,2]
[398928808,1766002240587,-1498.43269988,0.0002107,2]
[398929355,1766002246382,-1501.56730012,0.0002107,2]
[398929357,1766002246391,-3000.0,0.0002108,2]
[398929359,1766002246406,-3000.0,0.0002109,2]
[398929360,1766002246415,-3000.0,0.000211,2]
[398929362,1766002246424,-3000.0,0.0002111,2]
[398929363,1766002246433,-16.88108635,0.0002112,2]
[398930022,1766002311702,150.0,6.909e-05,2]
[398930023,1766002312096,150.0,7.238e-05,2]
[398930026,1766002351565,162.53,0.0001,2]
[398930038,1766002370828,-162.53,0.000102,2]
[398930039,1766002370849,-0.4173937,0.000104,2]
[398930040,1766002377043,150.0,6.98e-05,2]
[398930041,1766002377480,150.0,7.313e-05,2]
[398930042,1766002377868,150.0,7.645e-05,2]
[398930043,1766002378263,150.0,7.977e-05,2]
[398930044,1766002651094,162.43,0.0001,2]
[398930045,1766003206134,-450.41598,0.00016714,2]
[398930046,1766003300848,-166.40692821,0.00010618,2]
[398930096,1766003436172,-257.18135721,0.00010618,2]
[398930097,1766003436182,-150.0,0.00012809,2]
[398930098,1766003436191,-22.43887759,0.00014809,2]
[398930099,1766003436203,-154.56112241,0.00014809,2]
[398930100,1766003436212,-150.5317438,0.00015,2]
[398930101,1766003436221,-197.39764616,0.00016809,2]
[398930102,1766003436230,-3112.64352602,0.00019205,5]
[398930103,1766003436242,-300.0,0.00019999,2]
[398930104,1766003436251,-300.0,0.00019999,2]
[398930105,1766003436260,-1200.0,0.00019999,2]
[398930106,1766003436269,-2000.0,0.0002,2]
[398930107,1766003436279,-3081.05965419,0.0002,2]
[398930108,1766003436288,-202.07913146,0.0002,2]
[398930109,1766003436297,-502.79467838,0.0002,2]
[398930110,1766003436307,-200.40414288,0.0002,2]
[398930111,1766003436316,-327.39256628,0.0002013,2]
[398930112,1766003436325,-271.13578842,0.0002061,2]
[398930141,1766003438422,-1113.51976006,0.0002061,2]
[398930143,1766003438432,-528.76540088,0.00020875,2]
[398930145,1766003438441,-255.55217388,0.000209,2]
[398930147,1766003438451,-186.1763481,0.00020923,2]
[398930149,1766003438461,-276.3892743,0.00021,2]
[398930151,1766003438470,-500.0,0.00021022,2]
[398930153,1766003438479,-500.0,0.00021022,2]
[398930155,1766003438490,-500.0,0.00021022,2]
[398930157,1766003438499,-500.0,0.00021022,2]
[398930159,1766003438509,-500.0,0.00021022,2]
[398930161,1766003438517,-500.0,0.00021022,2]
[398930163,1766003438527,-500.0,0.00021022,2]
[398930165,1766003438536,-500.0,0.00021022,2]
[398930167,1766003438545,-500.0,0.00021022,2]
[398930169,1766003438555,-500.0,0.00021022,2]
[398930171,1766003438564,-500.0,0.00021022,2]
[398930173,1766003438574,-500.0,0.00021022,2]
[398930175,1766003438583,-603.64576783,0.00021022,2]
[398930177,1766003438592,-500.0,0.00021022,2]
[398930180,1766003438601,-216.00470094,0.00021022,2]
[398930183,1766003438610,-500.0,0.00021022,2]
[398930185,1766003438619,-500.0,0.00021022,2]
[398930188,1766003438628,-500.0,0.00021022,2]
[398930191,1766003438638,-500.0,0.00021022,2]
[398930194,1766003438647,-500.0,0.00021022,2]
[398930197,1766003438656,-500.0,0.00021022,2]
[398930199,1766003438665,-500.0,0.00021022,2]
[398930201,1766003438674,-500.0,0.00021022,2]
[398930203,1766003438683,-500.0,0.00021022,2]
[398930205,1766003438692,-500.0,0.00021022,2]
[398930207,1766003438702,-517.9471568,0.00021022,2]
[398930209,1766003438711,-387.70802958,0.00021022,2]
[398930211,1766003438723,-500.0,0.00021022,2]
[398930213,1766003438732,-500.0,0.00021022,2]
[398930225,1766003438840,-500.0,0.00021022,2]
[398930228,1766003438859,-500.0,0.00021022,2]
[398930230,1766003438868,-500.0,0.00021022,2]
[398930232,1766003438877,-500.0,0.00021022,2]
[398930234,1766003438886,-500.0,0.00021022,2]
[398930236,1766003438895,-500.0,0.00021022,2]
[398930238,1766003438904,-500.0,0.00021022,2]
[398930240,1766003438912,-500.0,0.00021022,2]
[398930242,1766003438921,-500.0,0.00021023,2]
[398930244,1766003438930,-1252.65470379,0.00021024,2]
[398930246,1766003438939,-36875.99368741,0.00021024,2]
[398930247,1766003438948,-2000.0,0.00021119,2]
[398930250,1766003438957,-2983.11891365,0.0002112,2]
[398930252,1766003438967,-1200.0,0.00021123,2]
[398930253,1766003438976,-3000.0,0.0002113,2]
[398930255,1766003438985,-3000.0,0.0002114,2]
[398930257,1766003438995,-3000.0,0.0002115,2]
[398930259,1766003439004,-3000.0,0.0002116,2]
[398930261,1766003439013,-414.7996,0.0002116,2]
[398930263,1766003439022,-3000.0,0.0002117,2]
[398930265,1766003439031,-219.93214106,0.00021173,2]
[398930267,1766003439039,-1622.48,0.00021174,10]
[398930269,1766003439048,-1352.06,0.00021174,10]
[398930271,1766003439058,-1126.72,0.00021174,10]
[398930273,1766003439067,-3000.0,0.0002118,2]
[398930275,1766003439076,-23914.97571974,0.00021185,2]
[398930277,1766003439086,-3000.0,0.0002119,2]
[398930279,1766003439096,-3000.0,0.000212,2]
[398930281,1766003439105,-3000.0,0.0002121,2]
[398930283,1766003439114,-3000.0,0.0002122,2]
[398930285,1766003439123,-3000.0,0.0002123,2]
[398930287,1766003439132,-3000.0,0.0002124,2]
[398930289,1766003439141,-3000.0,0.0002125,2]
[398930291,1766003439150,-3000.0,0.0002126,2]
[398930293,1766003439160,-3000.0,0.0002127,2]
[398930295,1766003439169,-3000.0,0.0002128,2]
[398930297,1766003439178,-3000.0,0.0002129,2]
[398930299,1766003439189,-500.0,0.00021297,2]
[398930301,1766003439198,-3000.0,0.000213,2]
[398930303,1766003439208,-3000.0,0.0002131,2]
[398930305,1766003439217,-3000.0,0.0002132,2]
[398930307,1766003439226,-3000.0,0.0002133,2]
[398930309,1766003439235,-3303.97403,0.0002134,2]
[398930311,1766003439246,-600.0,0.0002142,10]
[398930313,1766003439255,-1036.29689658,0.000215,2]
[398930315,1766003439264,-1117.19352928,0.000215,2]
[398930317,1766003439274,-500.0,0.00021571,2]
[398930319,1766003439283,-762.33,0.000227,7]
[398930321,1766003439293,-180.185891,0.00022845,2]
[398930324,1766003439303,-720.0,0.00023562,10]
[398930325,1766003439312,-545.812782,0.00023993,2]
[398930327,1766003439321,-380.0,0.00024658,2]
[398930329,1766003439330,-10402.0483448,0.000248,2]
[398930331,1766003439339,-933.1569538,0.000249,2]
[398930333,1766003439348,-343.25924654,0.00025517,2]
[398930335,1766003439357,-310.2470124,0.00025517,2]
[398930337,1766003439366,-151.0,0.000256,11]
[398930339,1766003439375,-864.0,0.00025918,10]
[398930341,1766003439384,-574.12855637,0.00026441,2]
[398930343,1766003439394,-200.0,0.00026441,2]
[398930345,1766003439404,-151.0,0.000265,13]
[398930347,1766003439413,-392.29628176,0.00026723,2]
[398930349,1766003439422,-256.3,0.00026822,2]
[398930351,1766003439431,-595.37131296,0.00026989,2]
[398930353,1766003439440,-200.0,0.00026989,2]
[398930355,1766003439449,-354.56801417,0.00027009,2]
[398930357,1766003439459,-151.0,0.000274,17]
[398930359,1766003439468,-151.0,0.000274,12]
[398930361,1766003439478,-617.40005154,0.00027537,2]
[398930363,1766003439487,-200.0,0.00027537,2]
[398930365,1766003439497,-640.24385345,0.00028085,2]
[398930367,1766003439506,-200.0,0.00028085,2]
[398930369,1766003439515,-151.0,0.000283,20]
[398930371,1766003439524,-151.0,0.000283,16]
[398930373,1766003439533,-1000.0,0.0002851,30]
[398930375,1766003439543,-663.93287602,0.00028633,2]
[398930377,1766003439551,-200.0,0.00028633,2]
[398930378,1766003439560,-189.62277794,0.00028879,2]
[398930380,1766003439570,-151.0,0.000291,11]
[398930382,1766003439579,-151.0,0.000291,19]
[398930385,1766003439589,-688.49839244,0.00029181,2]
[398930386,1766003439598,-200.0,0.00029181,2]
[398930388,1766003439607,-588.5,0.00029402,10]
[398930390,1766003439616,-180.185891,0.00029694,60]
[398930392,1766003439625,-150.0,0.000297,2]
[398930395,1766003439635,-713.97283296,0.00029729,2]
[398930396,1766003439645,-200.0,0.00029729,2]
[398930398,1766003439654,-1866.3139076,0.00029762,2]
[398930400,1766003439663,-8373.71718737,0.00029762,2]
[398930403,1766003439675,-12430.37950213,0.00029762,2]
[398930405,1766003439685,-1000.0,0.00029772,2]
[398930407,1766003439694,-716.04307572,0.00029772,2]
[398930409,1766003439703,-1000.0,0.00029772,2]
[398930411,1766003439716,-1000.0,0.00029772,2]
[398930413,1766003439725,-1000.0,0.00029772,2]
[398930414,1766003439733,-904.04392608,0.00029772,2]
[398930416,1766003439743,-151.0,0.00029772,2]
[398930418,1766003439752,-151.0,0.00029772,2]
[398930420,1766003439762,-151.0,0.00029772,2]
[398930422,1766003439771,-151.0,0.00029772,2]
[398930425,1766003439783,-151.0,0.00029772,2]
[398930427,1766003439793,-151.0,0.00029772,2]
[398930429,1766003439802,-151.0,0.00029772,2]
[398930430,1766003439811,-151.0,0.00029772,2]
[398930432,1766003439820,-282.69823616,0.00029772,2]
[398930434,1766003439829,-60013.86142368,0.00029772,2]
[398930437,1766003439840,-3607.13921305,0.00029772,2]
[398930439,1766003439851,-115055.20905421,0.00029772,2]
[398930441,1766003439860,-466.5784769,0.0002979,2]
[398930443,1766003439869,-5201.02417238,0.0002979,2]
[398930445,1766003439879,-5342.49,0.000298,2]
[398930447,1766003439888,-10427.44,0.000298,2]
[398930449,1766003439899,-278.4,0.000298,14]
[398930451,1766003439908,-151.0,0.000299,16]
[398930453,1766003439917,-151.0,0.000299,12]
[398930455,1766003439926,-6065.5201997,0.0002999,2]
[398930457,1766003439935,-15709.59149336,0.0002999,2]
[398930528,1766003440568,-454.43482302,0.0002999,2]
[398930837,1766003443463,-51449.28792452,0.0002999,2]
[398930839,1766003443472,-312322.23044627,0.0003,2]
[398930840,1766003443483,-767.93983771,0.0003,2]
[398930841,1766003443532,-434.80402,0.0003,2]
[398930842,1766003443543,-987.14006591,0.0003,2]
[398930850,1766003444896,-881.59228521,0.0003,2]
[398930860,1766003446659,-938.93,0.0002999,10]
[398930861,1766003446668,-420.07,0.0003,2]
[398930875,1766003543832,150.0,6.698e-05,2]
[398930876,1766003544230,150.0,7.017e-05,2]
[398930877,1766003544693,150.0,7.336e-05,2]
[398930878,1766003545094,150.0,7.655e-05,2]
[398930879,1766003545527,150.0,7.973e-05,2]
[398930880,1766003546400,150.0,8.292e-05,2]
[398930881,1766003546828,150.0,8.611e-05,2]
[398930882,1766003550995,297.84,0.0001,2]
[398930883,1766003555753,-197.44307179,0.000102,2]
[398930884,1766003611729,150.0,6.82e-05,2]
[398930886,1766003674676,-100.39692821,0.000102,2]
[398930887,1766003674697,-199.60307179,0.000103,2]
[398930889,1766003742384,150.0,6.786e-05,2]
[398930890,1766003742846,150.0,7.109e-05,2]
[398930891,1766003852270,227.74,0.0001,2]
[398930905,1766004020358,-227.74,0.000102,2]
[398930906,1766004020379,-72.26,0.000102,2]
[398930907,1766004066525,150.0,6.89e-05,2]
[398930908,1766004067062,150.0,7.218e-05,2]
[398930909,1766004152139,151.9,0.0001,2]
[398930910,1766004169735,-151.9,0.000102,2]
[398930911,1766004169756,-414.63483602,0.000102,2]
[398930912,1766004196298,150.0,6.857e-05,2]
[398930913,1766004196750,150.0,7.184e-05,2]
[398930914,1766004197172,150.0,7.51e-05,2]
[398930915,1766004197578,150.0,7.837e-05,2]
[398930916,1766004452143,151.98,0.0001,2]
[398930917,1766004619532,-151.98,0.000102,2]
[398930918,1766004619554,-179.73442508,0.000102,2]
[398930919,1766004622904,-304.34900203,0.000102,2]
[398930957,1766004632564,-78.91657289,0.000102,2]
[398930958,1766004632574,-54.4315094,0.000103,2]
[398930959,1766004632583,-151.98,0.000104,2]
[398930960,1766004632593,-151.98,0.000106,2]
[398930961,1766004632603,-373.667647,0.00013699,2]
[398930962,1766004632612,-2000.0,0.00019204,5]
[398930963,1766004632620,-373.667647,0.00020187,2]
[398930964,1766004632629,-2000.0,0.00022699,7]
[398930965,1766004632638,-250.0,0.00023724,2]
[398930967,1766004632648,-1200.0,0.00026498,2]
[398930969,1766004632657,-2000.0,0.00026499,13]
[398930972,1766004632666,-151.0,0.00026574,2]
[398930975,1766004632676,-151.0,0.00026574,2]
[398930978,1766004632685,-151.0,0.00026574,2]
[398930981,1766004632694,-151.0,0.00026574,2]
[398930984,1766004632703,-151.0,0.00026574,2]
[398930987,1766004632712,-151.0,0.00026574,2]
[398930989,1766004632722,-151.0,0.00026574,2]
[398930991,1766004632731,-252.36216438,0.00026574,2]
[398930993,1766004632740,-151.0,0.00026574,2]
[398930995,1766004632749,-151.0,0.00026574,2]
[398930996,1766004632758,-151.0,0.00026574,2]
[398930997,1766004632768,-151.0,0.00026574,2]
[398930998,1766004632777,-151.0,0.00026574,2]
[398930999,1766004632786,-151.0,0.00026574,2]
[398931000,1766004632795,-151.0,0.00026574,2]
[398931001,1766004632805,-151.0,0.00026574,2]
[398931002,1766004632814,-151.0,0.00026574,2]
[398931003,1766004632824,-151.0,0.00026574,2]
[398931004,1766004632833,-151.0,0.00026574,2]
[398931005,1766004632843,-157.63042449,0.00026574,2]
[398931006,1766004632852,-300.0,0.00026574,2]
[398931007,1766004632861,-279.77190631,0.00026589,2]